fUST/lending_fUST_20250226
["ID","MTS","AMOUNT","RATE_DAILY","PERIOD"]
[354458343,1740519051233,-501.31845715,0.00049315,120]
[354458344,1740519051243,-500.0,0.00049315,120]
[354458345,1740519051252,-500.0,0.00049315,120]
[354458346,1740519051262,-500.0,0.00049315,120]
[354458347,1740519051271,-500.0,0.00049315,120]
[354458348,1740519051281,-524.29,0.00049315,120]
[354458349,1740519051291,-505.44217042,0.00049315,120]
[354458350,1740519051301,-500.0,0.00049315,120]
[354458351,1740519051311,-500.0,0.00049315,120]
[354458352,1740519051320,-500.0,0.00049315,120]
[354458353,1740519051330,-500.0,0.00049315,120]
[354458354,1740519051339,-500.0,0.00049315,120]
[354458355,1740519051348,-500.0,0.00049315,120]
[354458356,1740519051358,-500.0,0.00049315,120]
[354458357,1740519051367,-500.0,0.00049315,120]
[354458358,1740519051376,-503.50382763,0.00049315,14]
[354458359,1740519051386,-501.1324357,0.00049315,120]
[354458360,1740519051395,-500.0,0.00049315,120]
[354458361,1740519051406,-500.0,0.00049315,120]
[354458362,1740519051416,-500.0,0.00049315,120]
[354458363,1740519051426,-500.0,0.00049315,120]
[354458364,1740519051435,-500.0,0.00049315,120]
[354458365,1740519051444,-500.0,0.00049315,120]
[354458366,1740519051452,-803.68,0.00049315,120]
[354458367,1740519051462,-500.0,0.00049315,120]
[354458368,1740519051471,-500.0,0.00049315,120]
[354458369,1740519051480,-2827.55,0.00049315,120]
[354458370,1740519051489,-500.0,0.00049315,120]
[354458371,1740519051499,-500.0,0.00049315,120]
[354458372,1740519051506,-500.0,0.00049315,120]
[354458373,1740519051515,-500.0,0.00049315,120]
[354458374,1740519051522,-500.0,0.00049315,120]
[354458375,1740519051528,-1286.1,0.00049315,120]
[354458376,1740519051535,-500.0,0.00049315,120]
[354458377,1740519051543,-500.0,0.00049315,120]
[354458378,1740519051551,-500.0,0.00049315,120]
[354458379,1740519051559,-500.0,0.00049315,30]
[354458380,1740519051568,-500.0,0.00049315,120]
[354458381,1740519051576,-500.0,0.00049315,120]
[354458382,1740519051586,-500.0,0.00049315,120]
[354458383,1740519051595,-500.0,0.00049315,120]
[354458384,1740519051607,-213.59493623,0.00049315,120]
[354458385,1740519051616,-500.0,0.00049315,120]
[354458386,1740519051625,-500.0,0.00049315,120]
[354458387,1740519051633,-500.0,0.00049315,120]
[354458388,1740519051641,-764.69,0.00049315,120]
[354458389,1740519051653,-500.0,0.00049315,120]
[354458390,1740519051661,-500.0,0.00049315,30]
[354458391,1740519051670,-501.15182719,0.00049315,120]
[354458392,1740519051678,-500.0,0.00049315,120]
[354458393,1740519051687,-500.91598207,0.00049315,120]
[354458394,1740519051697,-500.0,0.00049315,120]
[354458395,1740519051706,-500.0,0.00049315,120]
[354458396,1740519051715,-2002.03,0.00049315,120]
[354458397,1740519051724,-500.0,0.00049315,120]
[354458398,1740519051733,-500.0,0.00049315,120]
[354458399,1740519051741,-500.0,0.00049315,120]
[354458400,1740519051751,-500.0,0.00049315,120]
[354458401,1740519051759,-500.0,0.00049315,120]
[354458402,1740519051768,-500.0,0.00049315,120]
[354458403,1740519051778,-2874.66,0.00049315,120]
[354458404,1740519051786,-500.0,0.00049315,120]
[354458405,1740519051795,-500.89298169,0.00049315,120]
[354458406,1740519051804,-500.0,0.00049315,120]
[354458407,1740519051812,-501.634988,0.00049315,120]
[354458408,1740519051821,-1539.84,0.00049315,120]
[354458409,1740519051829,-500.0,0.00049315,120]
[354458410,1740519051838,-500.0,0.00049315,120]
[354458411,1740519051846,-500.0,0.00049315,120]
[354458412,1740519051855,-500.0,0.00049315,120]
[354458413,1740519051864,-501.0656162,0.00049315,120]
[354458414,1740519051873,-1372.6,0.00049315,120]
[354458415,1740519051883,-500.0,0.00049315,120]
[354458416,1740519051892,-500.0,0.00049315,120]
[354458417,1740519051902,-500.0,0.00049315,120]
[354458418,1740519051912,-500.0,0.00049315,120]
[354458419,1740519051921,-315.81512305,0.00049315,120]
[354458420,1740519051930,-500.0,0.00049315,120]
[354458421,1740519051940,-500.0,0.00049315,120]
[354458422,1740519051949,-2167.36,0.00049315,120]
[354458423,1740519051958,-500.0,0.00049315,120]
[354458424,1740519051968,-500.0,0.00049315,120]
[354458425,1740519051977,-500.0,0.00049315,120]
[354458426,1740519051987,-500.0,0.00049315,120]
[354458427,1740519051996,-1031.41,0.00049315,120]
[354458428,1740519052005,-1128.56,0.00049315,120]
[354458429,1740519052014,-500.0,0.00049315,120]
[354458430,1740519052023,-847.51,0.00049315,120]
[354458431,1740519052032,-500.0,0.00049315,120]
[354458432,1740519052041,-1010.46,0.00049315,120]
[354458433,1740519052050,-500.0,0.00049315,120]
[354458434,1740519052176,-3061.97,0.00049315,120]
[354458435,1740519052185,-1465.92,0.00049315,120]
[354458436,1740519052195,-500.0,0.00049315,120]
[354458437,1740519052203,-402.67134412,0.00049315,120]
[354458438,1740519052212,-500.0,0.00049315,120]
[354458439,1740519052221,-500.0,0.00049315,120]
[354458440,1740519052231,-500.0,0.00049315,120]
[354458441,1740519052241,-4164.0,0.00049315,120]
[354458442,1740519052250,-500.0,0.00049315,120]
[354458443,1740519052260,-378.02108999,0.00049315,120]
[354458444,1740519052270,-500.0,0.00049315,120]
[354458445,1740519052279,-500.0,0.00049315,120]
[354458446,1740519052289,-500.0,0.00049315,120]
[354458447,1740519052298,-500.0,0.00049315,120]
[354458448,1740519052307,-505.06246647,0.00049315,120]
[354458449,1740519052316,-500.0,0.00049315,120]
[354458450,1740519052325,-500.0,0.00049315,120]
[354458451,1740519052334,-825.18,0.00049315,120]
[354458452,1740519052344,-500.0,0.00049315,120]
[354458453,1740519052353,-500.0,0.00049315,120]
[354458454,1740519052361,-500.0,0.00049315,120]
[354458455,1740519052371,-500.0,0.00049315,120]
[354458456,1740519052380,-500.0,0.00049315,120]
[354458457,1740519052389,-500.0,0.00049315,120]
[354458458,1740519052398,-500.0,0.00049315,120]
[354458459,1740519052407,-652.14,0.00049315,120]
[354458460,1740519052417,-500.0,0.00049315,120]
[354458461,1740519052426,-2548.62,0.00049315,120]
[354458462,1740519052435,-501.93245644,0.00049315,120]
[354458463,1740519052445,-500.0,0.00049315,120]
[354458464,1740519052454,-500.0,0.00049315,120]
[354458465,1740519052463,-500.0,0.00049315,120]
[354458466,1740519052473,-500.0,0.00049315,120]
[354458467,1740519052483,-552.6,0.00049315,120]
[354458468,1740519052492,-500.0,0.00049315,120]
[354458469,1740519052501,-500.0,0.00049315,120]
[354458470,1740519052510,-500.0,0.00049315,120]
[354458471,1740519052519,-1272.0,0.00049315,120]
[354458472,1740519052528,-606.19190068,0.00049315,120]
[354458473,1740519052537,-500.0,0.00049315,120]
[354458474,1740519052546,-540.36883659,0.00049315,120]
[354458475,1740519052555,-500.0,0.00049315,28]
[354458476,1740519052564,-500.0,0.00049315,120]
[354458477,1740519052573,-500.0,0.00049315,120]
[354458478,1740519052582,-2086.99,0.00049315,120]
[354458479,1740519052591,-500.0,0.00049315,120]
[354458480,1740519052601,-210.001472,0.00049315,120]
[354458481,1740519052609,-500.0,0.00049315,120]
[354458482,1740519052621,-500.0,0.00049315,120]
[354458483,1740519052629,-500.0,0.00049315,120]
[354458484,1740519052638,-502.26509993,0.00049315,120]
[354458485,1740519052648,-1922.37,0.00049315,120]
[354458486,1740519052658,-500.0,0.00049315,120]
[354458487,1740519052667,-500.0,0.00049315,120]
[354458488,1740519052676,-901.29,0.00049315,120]
[354458489,1740519052685,-500.0,0.00049315,120]
[354458490,1740519052697,-575.98,0.00049315,120]
[354458491,1740519052706,-652.73,0.00049315,120]
[354458492,1740519052716,-500.0,0.00049315,120]
[354458493,1740519052725,-500.0,0.00049315,120]
[354458494,1740519052734,-500.0,0.00049315,120]
[354458495,1740519052743,-500.0,0.00049315,120]
[354458496,1740519052752,-500.0,0.00049315,120]
[354458497,1740519052761,-1328.81,0.00049315,120]
[354458498,1740519052770,-500.0,0.00049315,120]
[354458499,1740519052779,-1309.55,0.00049315,120]
[354458500,1740519052787,-500.0,0.00049315,120]
[354458501,1740519052797,-1000.0,0.00049315,120]
[354458502,1740519052805,-500.0,0.00049315,120]
[354458503,1740519052815,-500.0,0.00049315,120]
[354458504,1740519052824,-805.37,0.00049315,45]
[354458505,1740519052833,-500.0,0.00049315,120]
[354458506,1740519052842,-500.0,0.00049315,120]
[354458507,1740519052851,-500.0,0.00049315,120]
[354458508,1740519052860,-500.0,0.00049315,20]
[354458509,1740519052870,-500.0,0.00049315,20]
[354458510,1740519052881,-500.0,0.00049315,20]
[354458511,1740519052891,-500.0,0.00049315,20]
[354458512,1740519052905,-500.0,0.00049315,120]
[354458513,1740519052917,-500.0,0.00049315,20]
[354458514,1740519052929,-500.0,0.00049315,20]
[354458515,1740519052940,-500.0,0.00049315,20]
[354458516,1740519052949,-573.05677327,0.00049315,120]
[354458517,1740519052958,-500.0,0.00049315,120]
[354458518,1740519052968,-500.0,0.00049315,120]
[354458519,1740519052979,-500.0,0.00049315,120]
[354458520,1740519052992,-1110.68,0.00049315,120]
[354458521,1740519053001,-503.58824205,0.00049315,120]
[354458522,1740519053011,-500.0,0.00049315,120]
[354458523,1740519053021,-500.0,0.00049315,120]
[354458524,1740519053030,-500.0,0.00049315,120]
[354458525,1740519053040,-663.85,0.00049315,120]
[354458526,1740519053049,-500.0,0.00049315,120]
[354458527,1740519053059,-500.0,0.00049315,120]
[354458528,1740519053070,-500.0,0.00049315,120]
[354458529,1740519053089,-500.0,0.00049315,120]
[354458530,1740519053106,-500.0,0.00049315,120]
[354458531,1740519053122,-500.0,0.00049315,120]
[354458532,1740519053138,-500.0,0.00049315,120]
[354458533,1740519053156,-500.0,0.00049315,120]
[354458534,1740519053174,-500.0,0.00049315,120]
[354458535,1740519053190,-500.0,0.00049315,120]
[354458536,1740519053206,-1041.62,0.00049315,120]
[354458537,1740519053221,-500.0,0.00049315,120]
[354458538,1740519053234,-500.0,0.00049315,120]
[354458539,1740519053249,-2860.45,0.00049315,120]
[354458540,1740519053265,-500.0,0.00049315,120]
[354458541,1740519053282,-500.0,0.00049315,120]
[354458542,1740519053300,-504.91476433,0.00049315,120]
[354458543,1740519053311,-1053.83,0.00049315,120]
[354458544,1740519053324,-3100.63,0.00049315,120]
[354458545,1740519053341,-500.0,0.00049315,120]
[354458546,1740519053355,-231.87434528,0.00049315,120]
[354458547,1740519053369,-949.71,0.00049315,120]
[354458548,1740519053383,-500.0,0.00049315,120]
[354458549,1740519053397,-500.0,0.00049315,120]
[354458550,1740519053411,-500.0,0.00049315,120]
[354458551,1740519053423,-500.0,0.00049315,120]
[354458552,1740519053436,-520.84,0.00049315,120]
[354458553,1740519053449,-500.0,0.00049315,120]
[354458554,1740519053463,-500.0,0.00049315,120]
[354458555,1740519053476,-678.83,0.00049315,120]
[354458556,1740519053489,-500.0,0.00049315,120]
[354458557,1740519053502,-562.27,0.00049315,120]
[354458558,1740519053514,-500.0,0.00049315,120]
[354458559,1740519053527,-500.0,0.00049315,120]
[354458560,1740519053542,-500.0,0.00049315,120]
[354458561,1740519053555,-794.87,0.00049315,120]
[354458562,1740519053568,-161.91501548,0.00049315,120]
[354458563,1740519053581,-500.0,0.00049315,120]
[354458564,1740519053594,-500.0,0.00049315,120]
[354458565,1740519053608,-885.27,0.00049315,120]
[354458566,1740519053624,-500.0,0.00049315,120]
[354458567,1740519053637,-789.88,0.00049315,120]
[354458568,1740519053651,-500.0,0.00049315,120]
[354458569,1740519053664,-664.89,0.00049315,120]
[354458570,1740519053677,-500.0,0.00049315,120]
[354458571,1740519053691,-2502.34,0.00049315,120]
[354458572,1740519053704,-393.74299951,0.00049315,120]
[354458573,1740519053718,-2491.31,0.00049315,120]
[354458574,1740519053730,-2347.69,0.00049315,120]
[354458575,1740519053744,-815.51,0.00049315,120]
[354458576,1740519053757,-500.0,0.00049315,120]
[354458577,1740519053770,-500.0,0.00049315,120]
[354458578,1740519053784,-500.0,0.00049315,120]
[354458579,1740519053797,-928.14,0.00049315,120]
[354458580,1740519053810,-928.14,0.00049315,120]
[354458581,1740519053823,-928.14,0.00049315,120]
[354458582,1740519053837,-928.14,0.00049315,120]
[354458583,1740519053851,-503.40269154,0.00049315,120]
[354458584,1740519053864,-928.14,0.00049315,120]
[354458585,1740519053877,-928.14,0.00049315,120]
[354458586,1740519053890,-928.14,0.00049315,120]
[354458587,1740519053904,-928.14,0.00049315,120]
[354458588,1740519053917,-928.14,0.00049315,120]
[354458589,1740519053930,-928.14,0.00049315,120]
[354458590,1740519053943,-406.18060076,0.00049315,120]
[354458591,1740519053956,-928.14,0.00049315,120]
[354458592,1740519053971,-500.0,0.00049315,120]
[354458593,1740519053986,-928.14,0.00049315,120]
[354458594,1740519054000,-928.14,0.00049315,120]
[354458595,1740519054013,-928.14,0.00049315,120]
[354458596,1740519054027,-928.14,0.00049315,120]
[354458597,1740519054041,-928.14,0.00049315,120]
[354458598,1740519054055,-928.14,0.00049315,120]
[354458599,1740519054069,-928.14,0.00049315,120]
[354458600,1740519054082,-928.14,0.00049315,120]
[354458601,1740519054095,-500.0,0.00049315,120]
[354458602,1740519054108,-928.14,0.00049315,120]
[354458603,1740519054121,-500.0,0.00049315,120]
[354458604,1740519054135,-928.14,0.00049315,120]
[354458605,1740519054149,-928.14,0.00049315,120]
[354458606,1740519054163,-628.59,0.00049315,120]
[354458607,1740519054176,-928.14,0.00049315,120]
[354458608,1740519054189,-928.36332884,0.00049315,120]
[354458609,1740519054202,-500.0,0.00049315,120]
[354458610,1740519054216,-5346.16,0.00049315,120]
[354458611,1740519054230,-500.0,0.00049315,120]
[354458612,1740519054243,-2251.12,0.00049315,120]
[354458613,1740519054256,-151.0,0.00049315,3]
[354458614,1740519054268,-3000.0,0.00049315,30]
[354458615,1740519054277,-151.0,0.00049315,3]
[354458616,1740519054287,-151.0,0.00049315,3]
[354458617,1740519054296,-151.0,0.00049315,3]
[354458618,1740519054305,-500.0,0.00049315,120]
[354458619,1740519054315,-500.0,0.00049315,120]
[354458620,1740519054324,-649.27493089,0.00049315,120]
[354458621,1740519054334,-1298.15,0.00049315,120]
[354458622,1740519054569,-500.0,0.00049315,120]
[354458623,1740519054583,-500.0,0.00049315,120]
[354458624,1740519054594,-500.0,0.00049315,120]
[354458625,1740519054608,-500.0,0.00049315,120]
[354458626,1740519054618,-500.0,0.00049315,120]
[354458627,1740519054629,-500.0,0.00049315,120]
[354458628,1740519054639,-500.0,0.00049315,120]
[354458629,1740519054648,-500.0,0.00049315,120]
[354458630,1740519054659,-500.0,0.00049315,120]
[354458631,1740519054668,-500.0,0.00049315,120]
[354458632,1740519054679,-500.0,0.00049315,120]
[354458633,1740519054690,-500.0,0.00049315,120]
[354458634,1740519054700,-500.0,0.00049315,120]
[354458635,1740519054709,-500.0,0.00049315,120]
[354458636,1740519054719,-500.0,0.00049315,120]
[354458637,1740519054728,-231.66041193,0.00049315,120]
[354458638,1740519054737,-500.0,0.00049315,120]
[354458639,1740519054747,-500.0,0.00049315,120]
[354458640,1740519054756,-500.0,0.00049315,120]
[354458641,1740519054765,-500.0,0.00049315,120]
[354458642,1740519054774,-500.0,0.00049315,120]
[354458643,1740519054783,-500.0,0.00049315,120]
[354458644,1740519054792,-500.0,0.00049315,120]
[354458645,1740519054801,-500.0,0.00049315,120]
[354458646,1740519054810,-500.0,0.00049315,120]
[354458647,1740519054819,-500.0,0.00049315,120]
[354458648,1740519054828,-500.84335252,0.00049315,120]
[354458649,1740519054837,-500.0,0.00049315,120]
[354458650,1740519054846,-500.0,0.00049315,120]
[354458651,1740519054855,-500.0,0.00049315,120]
[354458652,1740519054865,-500.0,0.00049315,120]
[354458653,1740519054874,-500.0,0.00049315,120]
[354458654,1740519054883,-500.0,0.00049315,120]
[354458655,1740519054892,-401.43793444,0.00049315,120]
[354458656,1740519054901,-500.0,0.00049315,120]
[354458657,1740519054910,-500.0,0.00049315,120]
[354458658,1740519054919,-500.0,0.00049315,120]
[354458659,1740519054929,-500.0,0.00049315,120]
[354458660,1740519054938,-914.32,0.00049315,120]
[354458661,1740519054948,-500.0,0.00049315,120]
[354458662,1740519054958,-500.0,0.00049315,120]
[354458663,1740519054967,-733.63,0.00049315,120]
[354458664,1740519054976,-500.0,0.00049315,120]
[354458665,1740519054986,-500.0,0.00049315,120]
[354458666,1740519054995,-500.0,0.00049315,120]
[354458667,1740519055005,-501.12020819,0.00049315,120]
[354458668,1740519055015,-618.09,0.00049315,120]
[354458669,1740519055024,-500.0,0.00049315,120]
[354458670,1740519055034,-500.0,0.00049315,120]
[354458671,1740519055043,-500.0,0.00049315,120]
[354458672,1740519055052,-500.0,0.00049315,120]
[354458673,1740519055062,-500.0,0.00049315,120]
[354458674,1740519055071,-500.0,0.00049315,120]
[354458675,1740519055080,-500.0,0.00049315,120]
[354458676,1740519055089,-500.0,0.00049315,120]
[354458677,1740519055099,-500.0,0.00049315,120]
[354458678,1740519055109,-500.0,0.00049315,120]
[354458679,1740519055119,-500.0,0.00049315,120]
[354458680,1740519055129,-500.0,0.00049315,120]
[354458681,1740519055138,-500.0,0.00049315,120]
[354458682,1740519055148,-1870.42,0.00049315,120]
[354458683,1740519055158,-500.0,0.00049315,120]
[354458684,1740519055167,-500.0,0.00049315,120]
[354458685,1740519055175,-500.0,0.00049315,120]
[354458686,1740519055184,-500.0,0.00049315,120]
[354458687,1740519055193,-781.11,0.00049315,120]
[354458688,1740519055203,-500.0,0.00049315,120]
[354458689,1740519055211,-500.0,0.00049315,120]
[354458690,1740519055220,-761.0,0.00049315,120]
[354458691,1740519055230,-500.0,0.00049315,120]
[354458692,1740519055239,-500.0,0.00049315,120]
[354458693,1740519055248,-500.0,0.00049315,120]
[354458694,1740519055258,-735.47,0.00049315,120]
[354458695,1740519055267,-650.54,0.00049315,120]
[354458696,1740519055277,-500.0,0.00049315,120]
[354458697,1740519055287,-500.0,0.00049315,120]
[354458698,1740519055296,-500.0,0.00049315,120]
[354458699,1740519055306,-500.0,0.00049315,120]
[354458700,1740519055315,-500.0,0.00049315,120]
[354458701,1740519055326,-1268.37,0.00049315,120]
[354458702,1740519055336,-500.0,0.00049315,120]
[354458703,1740519055346,-500.0,0.00049315,120]
[354458704,1740519055355,-500.0,0.00049315,120]
[354458705,1740519055364,-503.00923163,0.00049315,120]
[354458706,1740519055374,-1305.23,0.00049315,120]
[354458707,1740519055383,-500.0,0.00049315,120]
[354458708,1740519055392,-708.84,0.00049315,120]
[354458709,1740519055402,-6800.06,0.00049315,120]
[354458710,1740519055412,-505.05841345,0.00049315,120]
[354458711,1740519055421,-501.07459679,0.00049315,120]
[354458712,1740519055431,-500.0,0.00049315,120]
[354458713,1740519055440,-500.0,0.00049315,120]
[354458714,1740519055450,-500.0,0.00049315,120]
[354458715,1740519055459,-1191.96,0.00049315,120]
[354458716,1740519055469,-500.0,0.00049315,120]
[354458717,1740519055478,-500.0,0.00049315,120]
[354458718,1740519055487,-500.0,0.00049315,120]
[354458719,1740519055496,-500.0,0.00049315,120]
[354458720,1740519055505,-500.0,0.00049315,120]
[354458721,1740519055514,-500.0,0.00049315,120]
[354458722,1740519055524,-500.0,0.00049315,120]
[354458723,1740519055533,-500.0,0.00049315,120]
[354458724,1740519055542,-500.0,0.00049315,120]
[354458725,1740519055551,-500.0,0.00049315,120]
[354458726,1740519055561,-505.42859201,0.00049315,120]
[354458727,1740519055570,-509.73422162,0.00049315,120]
[354458728,1740519055580,-500.0,0.00049315,120]
[354458729,1740519055589,-500.0,0.00049315,120]
[354458730,1740519055598,-500.0,0.00049315,120]
[354458731,1740519055608,-12312.64,0.00049315,3]
[354458732,1740519055621,-583.77791725,0.00049315,120]
[354458733,1740519055630,-500.0,0.00049315,120]
[354458734,1740519055639,-500.0,0.00049315,120]
[354458735,1740519055648,-1008.28792213,0.00049315,120]
[354458736,1740519055659,-500.0,0.00049315,120]
[354458737,1740519055668,-500.0,0.00049315,120]
[354458738,1740519055677,-500.0,0.00049315,120]
[354458739,1740519055687,-500.0,0.00049315,120]
[354458740,1740519055696,-509.68746784,0.00049315,120]
[354458741,1740519055704,-500.0,0.00049315,120]
[354458742,1740519055712,-1000.0,0.00049315,2]
[354458743,1740519055720,-500.0,0.00049315,120]
[354458744,1740519055729,-500.0,0.00049315,120]
[354458745,1740519055737,-500.0,0.00049315,120]
[354458746,1740519055746,-500.0,0.00049315,120]
[354458747,1740519055756,-555.31,0.00049315,120]
[354458748,1740519055765,-500.0,0.00049315,120]
[354458749,1740519055774,-653.71,0.00049315,30]
[354458750,1740519055784,-500.0,0.00049315,120]
[354458751,1740519055793,-1219.1,0.00049315,120]
[354458752,1740519055802,-500.0,0.00049315,120]
[354458753,1740519055812,-500.0,0.00049315,120]
[354458754,1740519055821,-500.0,0.00049315,120]
[354458755,1740519055831,-500.0,0.00049315,120]
[354458756,1740519055841,-500.0,0.00049315,120]
[354458757,1740519055850,-18715.62,0.00049315,120]
[354458758,1740519055859,-500.0,0.00049315,21]
[354458759,1740519055868,-500.0,0.00049315,120]
[354458760,1740519055878,-500.0,0.00049315,120]
[354458761,1740519055887,-500.0097318,0.00049315,120]
[354458762,1740519055896,-1421.63,0.00049315,120]
[354458763,1740519055905,-500.0,0.00049315,120]
[354458764,1740519055915,-500.0,0.00049315,120]
[354458765,1740519055924,-500.0,0.00049315,120]
[354458766,1740519055934,-500.0,0.00049315,120]
[354458767,1740519055943,-500.0,0.00049315,120]
[354458768,1740519055953,-708.9,0.00049315,120]
[354458769,1740519055962,-500.0,0.00049315,120]
[354458770,1740519055971,-500.0,0.00049315,120]
[354458771,1740519055981,-500.0,0.00049315,120]
[354458772,1740519055990,-1244.04,0.00049315,120]
[354458773,1740519056000,-156.9338262,0.00049315,120]
[354458774,1740519056009,-500.0,0.00049315,120]
[354458775,1740519056018,-9658.64,0.00049315,120]
[354458776,1740519056028,-527.79,0.00049315,120]
[354458777,1740519056037,-500.0,0.00049315,120]
[354458778,1740519056047,-500.8333303,0.00049315,120]
[354458779,1740519056056,-3180.65,0.00049315,120]
[354458780,1740519056065,-2328.51,0.00049315,120]
[354458781,1740519056075,-500.0,0.00049315,120]
[354458782,1740519056084,-500.0,0.00049315,120]
[354458783,1740519056093,-7440.29,0.00049315,120]
[354458784,1740519056103,-500.0,0.00049315,120]
[354458785,1740519056112,-500.0,0.00049315,120]
[354458786,1740519056122,-355.89668563,0.00049315,120]
[354458787,1740519056132,-1349.53,0.00049315,120]
[354458788,1740519056141,-502.14505658,0.00049315,10]
[354458789,1740519056151,-500.0,0.00049315,120]
[354458790,1740519056161,-500.29,0.00049315,120]
[354458791,1740519056170,-506.29104005,0.00049315,120]
[354458792,1740519056180,-593.07389397,0.00049315,120]
[354458793,1740519056190,-500.0,0.00049315,120]
[354458794,1740519056200,-500.0,0.00049315,120]
[354458795,1740519056209,-500.0,0.00049315,120]
[354458796,1740519056219,-500.0,0.00049315,120]
[354458797,1740519056229,-250.0,0.00049315,120]
[354458798,1740519056238,-18480.01,0.00049315,120]
[354458799,1740519056247,-883.27,0.00049315,120]
[354458800,1740519056257,-173.90890343,0.00049315,120]
[354458801,1740519056266,-500.0,0.00049315,120]
[354458802,1740519056275,-500.0,0.00049315,120]
[354458803,1740519056285,-500.0,0.00049315,120]
[354458804,1740519056295,-500.0,0.00049315,120]
[354458805,1740519056304,-1537.59,0.00049315,120]
[354458806,1740519056314,-501.04327822,0.00049315,120]
[354458807,1740519056323,-500.0,0.00049315,120]
[354458808,1740519056332,-500.0,0.00049315,120]
[354458809,1740519056341,-1095.75,0.00049315,120]
[354458810,1740519056351,-1095.75,0.00049315,120]
[354458811,1740519056360,-1095.75,0.00049315,120]
[354458812,1740519056370,-1095.75,0.00049315,120]
[354458813,1740519056379,-1095.75,0.00049315,120]
[354458814,1740519056389,-1095.75,0.00049315,120]
[354458815,1740519056399,-1095.75,0.00049315,120]
[354458816,1740519056408,-3305.81,0.00049315,120]
[354458817,1740519056417,-500.0,0.00049315,120]
[354458818,1740519056427,-1095.75,0.00049315,120]
[354458819,1740519056436,-1095.75,0.00049315,120]
[354458820,1740519056446,-500.0,0.00049315,120]
[354458821,1740519056455,-1095.75,0.00049315,120]
[354458822,1740519056465,-1969.95,0.00049315,120]
[354458823,1740519056474,-1095.75,0.00049315,120]
[354458824,1740519056484,-1095.75,0.00049315,120]
[354458825,1740519056493,-500.0,0.00049315,120]
[354458826,1740519056502,-1095.75,0.00049315,120]
[354458827,1740519056511,-1095.75,0.00049315,120]
[354458828,1740519056521,-1095.75,0.00049315,120]
[354458829,1740519056530,-1095.75,0.00049315,120]
[354458830,1740519056539,-500.0,0.00049315,120]
[354458831,1740519056549,-1095.75,0.00049315,120]
[354458832,1740519056558,-1095.75,0.00049315,120]
[354458833,1740519056568,-542.30851831,0.00049315,120]
[354458834,1740519056577,-500.0,0.00049315,120]
[354458835,1740519056586,-1095.75,0.00049315,120]
[354458836,1740519056596,-1095.75,0.00049315,120]
[354458837,1740519056607,-1095.75,0.00049315,120]
[354458838,1740519056620,-1095.75,0.00049315,120]
[354458839,1740519056630,-1095.75,0.00049315,120]
[354458840,1740519056639,-1095.83374081,0.00049315,120]
[354458841,1740519056649,-1538.91,0.00049315,120]
[354458842,1740519056660,-500.0,0.00049315,120]